Cogmind - Beta 13 @@@ ROGUE MODE // 2024.07.09 @ 22:17:05 Player: OmnomBrains Result: Destroyed by 3L-782(R) with Subdweller Machine Gun Performance ------------- Evolutions (0) 0 Regions Visited (2) 400 Robots Destroyed (21) 105 Value Destroyed (431) 431 Prototype IDs (2) 40 Alien Tech Used (0) 0 Bonus (0) 0 TOTAL SCORE: 976 Bonus ------- None Cogmind --------- Core Integrity 0/250 Matter 299/300 Energy 83/100 System Corruption 0% Temperature Cool (0) Movement Rolling (95) Ox1 Location -10/Subcaves Parts ------- > --- POWER (1) -------- (None) > --- PROPULSION (2) --- Wheel > --- UTILITY (2) ------ Disposable Heat Sink Medium Storage Unit > --- WEAPON (2) ------- Subdweller Laser > --- INVENTORY (10) --- Subdweller Power Source Light Treads Light Treads Spiked Treads Subdweller Monowheel Disposable Heat Sink Subdweller Optics Peak State ------------ > --- POWER ------------ Ion Engine > --- PROPULSION ------- Subdweller Monowheel Subdweller Monowheel > --- UTILITY ---------- Disposable Heat Sink Medium Storage Unit > --- WEAPON ----------- Subdweller Laser Flamer > --- INVENTORY -------- Ion Engine Subdweller Power Source Light Treads Light Treads Spiked Treads Wheel Flight Unit Subdweller Optics Light Assault Rifle Mining Laser [Rating: 13] Favorites ----------- Power Light Ion Engine Engine Light Ion Engine Propulsion Aluminum Leg Leg Aluminum Leg Wheel Subdweller Monowheel Utility Medium Storage Unit Device Seismic Detector Storage Medium Storage Unit Weapon Assault Rifle Energy Gun Small Laser Ballistic Gun Assault Rifle Special Weapon Flamer Build | -11 -10 -10 ------- Run | Yrd Mat Sub Slots Evolved . | . . . Power . | . . . Propulsion . | . . . Utility . | . . . Weapon . | . . . Parts Attached 33 | 7 5 21 Power 5 | 1 1 3 Engine 5 | 1 1 3 Core . | . . . Reactor . | . . . Propulsion 9 | 2 1 6 Treads . | . . . Leg 3 | 2 1 . Wheel 6 | . . 6 Hover . | . . . Flight . | . . . Utility 5 | 2 1 2 Device 3 | 1 . 2 Storage 2 | 1 1 . Processor . | . . . Hackware . | . . . Protection . | . . . Artifact . | . . . Weapon 14 | 2 2 10 Energy Gun 4 | 1 1 2 Energy Cannon . | . . . Ballistic Gun 4 | 1 . 3 Ballistic Cannon . | . . . Launcher . | . . . Special Weapon 6 | . 1 5 Impact Weapon . | . . . Slashing Weapon . | . . . Piercing Weapon . | . . . Special Melee Weapon . | . . . Unidentified Prototypes . | . . . Parts Lost 13 | . 1 12 Power 2 | . . 2 Propulsion 4 | . . 4 Utility 1 | . 1 . Weapon 6 | . . 6 Highest Loss Streak 7 | . 1 7 To Critical Strikes . | . . . Average Slot Usage (%) 91 | . 95 88 Engine 14 | . 14 14 Leg 13 | . 28 3 Wheel 13 | . . 22 Device 8 | . 10 7 Storage 14 | . 14 14 Energy Gun 12 | . 14 11 Ballistic Gun 8 | . 13 4 Special Weapon 6 | . . 10 Naked Turns . | . . . Heaviest Build 23 | 12 17 23 Greatest Support 40 | 20 20 40 Greatest Overweight (x) 4 | . . 4 Average Overweight (x) . | . . . Largest Inventory Capacity 10 | 8 10 10 Average Capacity 9 | 7 8 10 Most Carried 10 | 8 10 10 Average Carried 8 | 5 8 8 Final Capacity 10 | 8 10 10 Final Carried 9 | 7 9 7 Class Distribution -------------------- 100% | Mutant Dominant Class ---------------- Mutant | -10/Materials Mutant | -10/Subcaves Resources | -11 -10 -10 ----------- Run | Yrd Mat Sub Matter Collected 617 | 263 161 193 Remotely . | . . . Salvage Created 636 | 45 370 221 Parts 36 | 6 18 12 Haulers Intercepted . | . . . Recyclers Shooed 3 | . 3 . Parts Field Recycled . | . . . Retrieved Matter . | . . . Parts Self-Destructed 9 | . . 9 Prevented . | . . . Kills | -11 -10 -10 ------- Run | Yrd Mat Sub Combat Hostiles Destroyed 16 | . 8 8 Guns 13 | . 8 5 Cannons 3 | . . 3 Classes Destroyed 6 | 1 4 1 Tunneler 2 | 2 . . Recycler 2 | . 2 . Watcher 1 | . 1 . Swarmer 8 | . 6 2 Grunt 4 | . 2 2 Subdweller 4 | . . 4 Best Kill Streak 5 | 2 5 2 Combat Bots Only 4 | . 4 2 Max Kills in Single Turn 1 | 1 1 1 Gunslinging . | . . . Exploded . | . . . Melee . | . . . Uniques/NPCs Destroyed . | . . . Combat | -11 -10 -10 -------- Run | Yrd Mat Sub Hostile Shots Fired 141 | . 64 77 Missed 37 | . 15 22 Damage Taken 1525 | . 426 1099 Core 254 | . 69 185 Absorbed by Shields . | . . . Core Remaining (%) 100 | 100 . . Volleys Fired 93 | 5 41 47 Largest 2 | 2 2 2 Hottest 160 | 60 100 160 Shots Fired 163 | 10 79 74 Gun 147 | 10 76 61 Cannon . | . . . Launcher . | . . . Special 16 | . 3 13 Kinetic 63 | 5 38 20 Thermal 90 | 5 41 44 Explosive . | . . . Electromagnetic 10 | . . 10 Robot Hit Streak 15 | 2 8 15 Robot Miss Streak 6 | 6 5 2 Penetration Max . | . . . Secondary Targets 2 | . 1 1 Max Gunslinging Chain 1 | . 1 1 Shots Hit Robots 102 | 3 44 55 Core Hits 36 | 3 15 18 Critical Kills . | . . . Critical Parts Destroyed . | . . . Critical Strikes 1 | . . 1 Destroy 1 | . . 1 Melee Attacks . | . . . Impact . | . . . Slashing . | . . . Piercing . | . . . Sneak Attacks . | . . . Combat Hostiles . | . . . Follow-up Attacks . | . . . Damage Inflicted 1202 | 45 538 619 Guns 1103 | 45 538 520 Cannons . | . . . Explosions . | . . . Melee . | . . . Ramming . | . . . Kinetic 407 | 13 289 105 Thermal 785 | 32 249 504 Explosive . | . . . Electromagnetic 10 | . . 10 Impact . | . . . Slashing . | . . . Piercing . | . . . Highest Corruption . | . . . Average Corruption . | . . . Corruption Purged . | . . . Corruption Blocked . | . . . Overload Shots . | . . . Overflow Damage . | . . . Projectiles . | . . . Explosions . | . . . Melee . | . . . Knockbacks . | . . . Impact . | . . . Kinetic . | . . . Secondary . | . . . Self-Inflicted Damage . | . . . Shots . | . . . Rammed . | . . . Targets Rammed . | . . . Kicked . | . . . Crushed . | . . . Highest Temperature 72 | . 72 22 Average Temperature 27 | . 34 10 Received Heat Transfer 156 | . 78 78 Siege Activations . | . . . Robots Corrupted . | . . . Combat Hostiles . | . . . Parts Fried . | . . . Impact Corruptions . | . . . Robots Melted . | . . . Combat Hostiles . | . . . Parts Melted 2 | . 1 1 Heat Transferred 1894 | 75 575 1244 Parts Sabotaged . | . . . Parts Stolen . | . . . Parts Stripped . | . . . Power Chain Reactions . | . . . Alert | -11 -10 -10 ------- Run | Yrd Mat Sub Peak Influence 204 | 10 204 . Initial 6 | . 6 . Average 61 | 2 73 . Maximum Alert Level 1 | . 1 . Low Security (%) 94 | 100 93 . Level 1 5 | . 6 . Level 2 . | . . . Level 3 . | . . . Level 4 . | . . . Level 5 . | . . . High Security . | . . . Max Security . | . . . Squads Dispatched 1 | . 1 . Investigation . | . . . Extermination . | . . . Reinforcement 1 | . 1 . Assault . | . . . Garrison . | . . . Intercept . | . . . Searches Triggered . | . . . Construction Impeded . | . . . Haulers Reinforced . | . . . Active Scanning Responses . | . . . Cargo Convoy Interrupts . | . . . Stealth | -11 -10 -10 --------- Run | Yrd Mat Sub Distress Signals 1 | . 1 . Communications Jammed . | . . . Distress Signals . | . . . Times Spotted 21 | . 11 10 Peak Tracking Total 4 | . 4 4 Tactical Retreats . | . . . Traps | -11 -10 -10 ------- Run | Yrd Mat Sub Traps Triggered . | . . . Indirectly . | . . . Trap Hack Attempts . | . . . Triggered . | . . . Disarmed . | . . . Reprogrammed . | . . . Reused . | . . . Traps Extracted . | . . . Installed . | . . . Triggered . | . . . Machines | -11 -10 -10 ---------- Run | Yrd Mat Sub Machines Disabled . | . . . Max in Single Turn . | . . . Machines Repaired . | . . . Machines Dismantled . | . . . Machines Sabotaged . | . . . Overloaded Fab Kills . | . . . Hacking | -11 -10 -10 --------- Run | Yrd Mat Sub Machines Accessed 2 | . 2 . Terminals 1 | . 1 . Fabricators . | . . . Repair Stations . | . . . Recycling Units 1 | . 1 . Scanalyzers . | . . . Garrison Access . | . . . Total Hacks 9 | . 9 . Successful 5 | . 5 . Failed 4 | . 4 . Catastrophic . | . . . Database Lockouts . | . . . Manual . | . . . Terminals 3 | . 3 . Fabricators . | . . . Repair Stations . | . . . Recycling Units 6 | . 6 . Scanalyzers . | . . . Garrison Access . | . . . Terminal Hacks 1 | . 1 . Prototype ID Bank 1 | . 1 . Fabricator Hacks . | . . . Repair Station Hacks . | . . . Recycling Unit Hacks 4 | . 4 . Process 1 | . 1 . Report Inventory 2 | . 2 . Retrieve Matter 1 | . 1 . Scanalyzer . | . . . Garrison Access Hacks . | . . . Unauthorized Hacks . | . . . Terminals . | . . . Fabricators . | . . . Repair Stations . | . . . Recycling Units . | . . . Scanalyzers . | . . . Garrison Access . | . . . Data Cores Recovered . | . . . Used . | . . . Hacking Detections 1 | . 1 . Full Trace Events 1 | . 1 . Feedback Events . | . . . Feedback Blocked . | . . . Robot Schematics Acquired . | . . . Robots Built . | . . . Authchips . | . . . Time . | . . . Total Robot Build Rating . | . . . Part Schematics Acquired . | . . . Parts Built . | . . . Authchips . | . . . Time . | . . . Total Part Build Rating . | . . . Parts Repaired . | . . . Time . | . . . Parts Recycled . | . . . Recycled Matter 70 | . 70 . Retrieved Matter 70 | . 70 . Retrieved Components . | . . . Parts Scanalyzed . | . . . Part Schematics Acquired . | . . . Parts Damaged . | . . . Bothacking | -11 -10 -10 ------------ Run | Yrd Mat Sub Used RIF Installer . | . . . Robots Hacked . | . . . Non-combat . | . . . Combat . | . . . Robot Hacks Applied . | . . . Relay Couplers Released . | . . . Fabnet Peak Effective % . | . . . Robots Rewired . | . . . Allies Hacked . | . . . Hacks Repelled . | . . . Allies | -11 -10 -10 -------- Run | Yrd Mat Sub Total Allies . | . . . Largest Group . | . . . Highest-Rated Group . | . . . Highest-Rated Ally . | . . . Total Orders . | . . . Ally Attacks . | . . . Total Damage . | . . . Kills . | . . . Allies Corrupted . | . . . Allies Melted . | . . . Intel | -11 -10 -10 ------- Run | Yrd Mat Sub Robot Analysis Total . | . . . Derelict Logs Recovered . | . . . Drone Launches . | . . . Drone Recoveries . | . . . Exploration | -11 -10 -10 ------------- Run | Yrd Mat Sub Turns Passed 1123 | 89 437 597 Spaces Moved 681 | 54 249 378 Core 21 | 14 . 7 Treads . | . . . Legs 309 | 40 249 20 Wheels 351 | . . 351 Hover . | . . . Flight . | . . . Fastest Speed 50 | 50 120 80 Average Speed 108 | 101 120 102 Slowest Speed 250 | 120 120 250 Overloaded Moves . | . . . Propulsion Burnouts . | . . . Robots Hopped . | . . . Cave-ins Triggered . | . . . Exploration Rate (%) 25 | 6 45 25 Regions Visited 2 Branch Regions 1 Pre-discovered Areas . | . . . Known Exits Taken . | . . . Unknown Exits Taken 2 | 1 1 . Scrap Searched . | . . . Spaces Dug . | . . . Terrain Destroyed . | . . . Melee . | . . . Projectile . | . . . AOE . | . . . Terrain Rammed . | . . . Walls Destroyed . | . . . Machines Disabled . | . . . Actions | -11 -10 -10 --------- Run | Yrd Mat Sub Total 885 | 77 304 504 Wait 39 | . 1 38 Move 679 | 53 248 378 Hop . | . . . Pick Up 29 | 12 4 13 Fast Attach 2 | 2 . . Attach 15 | 5 . 10 Detach . | . . . Swap 16 | . 5 11 Drop 12 | . 5 7 Fire 93 | 5 41 47 Melee . | . . . Ram . | . . . Kick . | . . . Crush . | . . . Escape Stasis . | . . . Rewire . | . . . Trap . | . . . Miscellaneous . | . . . Route ------- -11/Scrapyard -10/Materials (discovered 3 exits: [*Mat] / [*Min] / [*Sub]) -10/Subcaves (discovered 1 exit: [*Mat]) History --------- Turn | Location | Event 12 | -11/Scrapyard | Discovered new exit (range 14) 90 | -11/Scrapyard | Entered Materials 314 | -10/Materials | Build established: Mutant 315 | -10/Materials | Discovered new exit (range 15) 503 | -10/Materials | Discovered new exit (range 12) 522 | -10/Materials | Discovered new exit (range 3) 527 | -10/Materials | Entered Subcaves 534 | -10/Subcaves | Discovered new exit (range 7) 536 | -10/Subcaves | Shifting Twisted Machinery released Sub. Monowheel 541 | -10/Subcaves | Ambushed by angry Subdweller bent on revenge 610 | -10/Subcaves | Core integrity fell below 50% 629 | -10/Subcaves | Shifting Twisted Machinery released Flamer 632 | -10/Subcaves | Lost 5 parts (2n3w) 1099 | -10/Subcaves | Core integrity fell below 20% 1124 | -10/Subcaves | Destroyed by 3L-782(R) with Subdweller Machine Gun Last Messages --------------- Acquired 30 matter. 4V-FVR(u) tweaks Twisted Machinery. Acquired Disposable Heat Sink. Subatomizers dissect the Wheel. Ion Engine destroyed. Flamer destroyed. Mining Laser destroyed. Sub. Monowheel destroyed. P8-AVM(R) suffers critical hit (Destroy). Sub. Monowheel destroyed. P8-AVM(R) destroyed. Switching to secondary target: 3L-782(R). 3L-782(R) affixes Scrap Shield Fragment to Scrap Shield. Acquired Sub. Monowheel. Acquired 20 matter. Lgt. Assault Rifle destroyed. Ion Engine destroyed. 3L-782(R) affixes Scrap Shield Fragment to Scrap Shield. Map ----- +----------------------------------------------------+ | ?????????????????????????????????????????????????? | | ?????????????????????????????????????????????????? | | ?????????????????????????????????????????????????? | | ?????????????????????????????????????????????????? | | ?????????????????????????????????????????????????? | | ?????????????????????????????????????????????????? | | ?????????????????????????????????????????????????? | | ?????????????????????????????????????????????????? | | ?????????????????????????????????????????????????? | | ?????????????????????????????????????????????????? | | ?????????????????????????????????????????????????? | | ?????????????????????????????????????????????????? | | ?????????????????????????????????????????????????? | | ?????????????????????????????????????????????????? | | ?????????????????????????????????????????????????? | | ?????????????????????????????????????????????????? | | ??????????????????????????##?????????????????????? | | ?????????????????????????? ##????????????????????? | | ?????????????????????????? ?????????????????????? | | ?????????????????????????? ?????????????????????# | | ????????????????" ???????? ##?????????########??## | | ???????????????? ????## ??##??###?# ##?# | | ???????????????? ""#???# ## #??# ### #?# | | ????????????????# """##?# # #??# ## ###* | | ???????????????????#" ## #??## ##% | | ???????????????????# @ #???# ## | | ???????????????????# R] ##???## ##### | | ???????????????????## ;# ##????## ##### | | ????????????????????#### #?????# ##?# ##### | | ???????????????????????# ###???# ### ##???? | | ???????????????????????# ##??# #????# | | ???????????????????????# #### ###### | | ???????????????????????# # # | | ???????????????????????# | | ???????????????????????## | | ?????????????? ### | | ?????????????? #### ### | | ?????????????###### ##?# ##?# | | ?????????????????# #?# ## ###??# | | ???????????????# #?# #### ##???? | | ??????????????# #?## ##??## #???? | | ?????????????? #??##?????## ##??? | | ?????????????? #??????????# #??? | | ???????????????# ######?????????# #?? | | ???????????????# ???????????????## #?? | | ??????????????? ????????????????# #?? | | ???????????????? ?????????????????## ##?? | | ???????????????? ???????????????????####??? | | ?????????????????# ?????????????????????????? | | ??????????????????? ??????????????????????????? | +----------------------------------------------------+ Best States ------------- Heat Dissipation 25 Coolant Potential 50 Energy Generation 10 Energy Capacity 250 Matter Stores 300 Matter Capacity 300 Sight Range 21 Terrain Scan Density 10 Evasion (%) 55 Item Schematics ----------------- None Robot Schematics ------------------ None Fabricated ------------ Nothing Alien Tech Used ----------------- None Achievements -------------- None Challenges ------------ None Game ------ Seed PulseDiametricCalibrator Manual? 0 Play Time 00:15:35 Cumulative 17.3 hours Start 2024.07.09 @ 22:03:34 End 2024.07.09 @ 22:17:05 Sessions 1 Manual Loads 0 Difficulty Rogue Special Mode None Game No. 22 Rogue 22 Adventurer 0 Explorer 0 Win Type - Total 0 Types 0/0/0/0/0/0/0/0/0 Lore% 14 Gallery% 19 Achievement% 16 Wizard Run 0 Options --------- Layout 1 ASCII 0 Keyboard 0 Movement Mouse Keybinds 0 Fullscreen 1 Font 24/Terminus Map View 50x35 Zoom Use 0% Tactical HUD 0 Map Filters NONE Filters NONE Steam 1 RUN: 1b008ae1-8709-4cd5-8f2e-9ae883ffb0ca